Cogmind - Beta 14 @@@ ROGUE MODE // 2024.12.14 @ 13:03:29 Player: Mathewnd Result: Destroyed by Y-64 Sentinel with Wave Gun Performance ------------- Evolutions (5) 2500 Regions Visited (8) 1600 Robots Destroyed (21) 105 Value Destroyed (513) 513 Prototype IDs (4) 80 Alien Tech Used (0) 0 Bonus (37) 37 TOTAL SCORE: 4835 Bonus ------- Follower Combat Kills 37 Cogmind --------- Core Integrity 0/1000 Matter 48/300 Energy 150/150 System Corruption 8% Temperature Cool (9) Movement Walking (120) Location -5/Extension Parts ------- > --- POWER (1) -------- Micro Nuclear Core > --- PROPULSION (4) --- Flexi-carbon Leg Flexi-carbon Leg > --- UTILITY (10) ----- Visual Processing Unit Signal Interpreter Improved Terrain Scanner Improved Shock Absorption System Hacking Suite > --- WEAPON (2) ------- Battle Rifle > --- INVENTORY (5) ---- Light Angular Momentum Engine VTOL Module Peak State ------------ > --- POWER ------------ Light Fission Core > --- PROPULSION ------- Gravmag System Gravmag Array > --- UTILITY ---------- Visual Processing Unit Signal Interpreter Improved Signal Interpreter Phase Shifter Hardened Light Armor Plating Hacking Suite > --- WEAPON ----------- Autogun Heavy Rocket Launcher > --- INVENTORY -------- Light Fission Core VTOL Module [Rating: 41] Favorites ----------- Power Micro Nuclear Core Engine Light Ion Engine Power Core Micro Nuclear Core Propulsion Hover Unit Leg Aluminum Leg Hover Unit Hover Unit Flight Unit VTOL Module Utility Signal Interpreter Device Sensor Array Storage Small Storage Unit Processor Signal Interpreter Hackware Hacking Suite Protection Hardened Light Armor Plating Weapon Assault Rifle Energy Gun Lightning Gun Energy Cannon Plasma Cannon Ballistic Gun Assault Rifle Launcher Heavy Rocket Launcher Build | -11 -10 -9 -9 -8 -7 -6 -5 -5 ------- Run | Yrd Mat Mat Min Mat Fac Fac Fac Ext Slots Evolved 10 | . . 2 . 2 2 2 2 . Power . | . . . . . . . . . Propulsion 2 | . . 1 . 1 . . . . Utility 8 | . . 1 . 1 2 2 2 . Weapon . | . . . . . . . . . Parts Attached 59 | 5 3 4 . 2 18 12 5 10 Power 8 | . 1 . . 1 3 1 1 1 Engine 2 | . 1 . . . 1 . . . Core 6 | . . . . 1 2 1 1 1 Reactor . | . . . . . . . . . Propulsion 25 | 2 1 3 . . 8 4 3 4 Treads . | . . . . . . . . . Leg 8 | 2 1 . . . 2 . . 3 Wheel . | . . . . . . . . . Hover 13 | . . 3 . . 4 3 3 . Flight 4 | . . . . . 2 1 . 1 Utility 16 | 1 1 1 . 1 4 4 1 3 Device 6 | . . 1 . . 1 1 1 2 Storage 2 | 1 . . . . 1 . . . Processor 4 | . 1 . . 1 1 1 . . Hackware 3 | . . . . . 1 1 . 1 Protection 1 | . . . . . . 1 . . Artifact . | . . . . . . . . . Weapon 10 | 2 . . . . 3 3 . 2 Energy Gun 1 | . . . . . . . . 1 Energy Cannon 1 | . . . . . . 1 . . Ballistic Gun 7 | 2 . . . . 3 1 . 1 Ballistic Cannon . | . . . . . . . . . Launcher 1 | . . . . . . 1 . . Special Weapon . | . . . . . . . . . Impact Weapon . | . . . . . . . . . Slashing Weapon . | . . . . . . . . . Piercing Weapon . | . . . . . . . . . Special Melee Weapon . | . . . . . . . . . Unidentified Prototypes 2 | . . . . . . . 2 . Parts Lost 37 | . . . 3 4 14 9 5 2 Power 6 | . . . . 2 2 1 1 . Propulsion 13 | . . . 2 1 4 2 3 1 Utility 10 | . . . . 1 5 3 1 . Weapon 8 | . . . 1 . 3 3 . 1 Highest Loss Streak 8 | . . . 2 1 8 4 5 2 To Critical Strikes 1 | . . . 1 . . . . . Average Slot Usage (%) 61 | . 90 100 87 45 62 52 30 38 Engine 3 | . 10 11 11 1 . . . . Core 3 | . . . . 3 5 4 4 5 Leg 6 | . 28 . . . . . . 10 Hover 9 | . . 33 25 3 14 8 9 . Device 4 | . . 11 11 9 5 . 3 3 Storage 5 | . 14 11 11 9 5 . . . Processor 12 | . 8 11 11 18 14 15 11 11 Hackware 1 | . . . . . 4 4 . . Ballistic Gun 9 | . 28 22 17 . 7 5 . . Peak Build Rating 41 | 5 8 10 10 9 34 41 36 38 Average Rating 17 | 3 6 9 8 6 20 29 23 24 On Entrance 5 | . 5 8 10 6 4 7 4 4 Naked Turns . | . . . . . . . . . Heaviest Build 23 | 9 12 13 13 11 19 23 7 16 Greatest Support 60 | 20 20 18 18 6 35 29 39 60 Greatest Overweight (x) 3 | . . . 1 3 3 2 . 3 Average Overweight (x) . | . . . . 1 . . . . Largest Inventory Capacity 8 | 8 8 8 8 8 8 5 5 5 Average Capacity 6 | 7 8 8 8 7 7 5 5 5 Most Carried 8 | 7 8 7 7 6 8 5 5 5 Average Carried 5 | 4 7 6 7 5 5 3 4 2 Final Capacity 8 | 8 8 8 8 5 5 5 5 5 Final Carried 8 | 7 8 7 7 5 5 3 5 2 Class Distribution -------------------- 70% | Mutant 16% | Scavenger-Mutant 11% | Scout Dominant Class ---------------- Mutant | -10/Materials Scavenger-Mutant | -9/Materials Scavenger-Mutant | -9/Mines Mutant | -8/Materials Scout | -7/Factory Mutant | -6/Factory Mutant | -5/Factory Mutant | -5/Extension Resources | -11 -10 -9 -9 -8 -7 -6 -5 -5 ----------- Run | Yrd Mat Mat Min Mat Fac Fac Fac Ext Matter Collected 862 | 248 107 46 45 . 207 60 3 146 Remotely . | . . . . . . . . . Salvage Created 733 | . 243 46 43 . 75 87 . 239 Parts 46 | . 18 2 2 . 9 5 . 10 Haulers Intercepted . | . . . . . . . . . Recyclers Shooed 3 | . 1 . . . 1 1 . . Parts Field Recycled . | . . . . . . . . . Retrieved Matter . | . . . . . . . . . Parts Self-Destructed . | . . . . . . . . . Prevented . | . . . . . . . . . Kills | -11 -10 -9 -9 -8 -7 -6 -5 -5 ------- Run | Yrd Mat Mat Min Mat Fac Fac Fac Ext Combat Hostiles Destroyed 14 | . 2 1 4 . 4 2 . 1 Guns 13 | . 2 1 4 . 4 1 . 1 AOE 1 | . . . . . . 1 . . Classes Destroyed 7 | . 4 . 1 . . 1 . 1 Worker 2 | . 1 . . . . 1 . . Tunneler 1 | . . . . . . . . 1 Recycler 2 | . 1 . . . . . . 1 Watcher 2 | . 2 . . . . . . . Swarmer 7 | . . . 3 . 4 . . . Grunt 4 | . 2 1 . . . . . 1 Hunter 2 | . . . . . . 2 . . Best Kill Streak 3 | . 3 1 2 . 2 2 . 1 Combat Bots Only 2 | . 2 1 2 . 2 1 . 1 Max Kills in Single Turn 2 | . 2 1 1 . 1 1 . 1 Gunslinging . | . . . . . . . . . Exploded 1 | . . . . . . 1 . . Melee . | . . . . . . . . . Uniques/NPCs Destroyed 1 | . . . 1 . . . . . YI-UF0 (-9/Mines) Combat | -11 -10 -9 -9 -8 -7 -6 -5 -5 -------- Run | Yrd Mat Mat Min Mat Fac Fac Fac Ext Hostile Shots Fired 516 | . 8 5 41 61 132 122 106 41 Missed 196 | . 2 2 13 13 47 54 48 17 Damage Taken 6204 | . 104 37 333 724 1700 1418 1391 497 Core 2861 | . 25 12 104 481 676 542 901 120 Absorbed by Shields . | . . . . . . . . . Regen/Repaired (Parts) 16 | . 16 . . . . . . . Core Remaining (%) 52 | 100 90 . 71 12 3 36 . . Volleys Fired 91 | . 13 2 19 . 29 15 . 13 Largest 2 | . 2 2 2 . 2 2 . 1 Hottest 103 | . 40 40 40 . 53 103 . 55 Shots Fired 138 | . 26 4 36 . 31 28 . 13 Gun 125 | . 26 4 36 . 31 15 . 13 Cannon 4 | . . . . . . 4 . . Launcher 9 | . . . . . . 9 . . Special . | . . . . . . . . . Kinetic 113 | . 26 4 36 . 31 15 . 1 Thermal 4 | . . . . . . 4 . . Explosive 9 | . . . . . . 9 . . Electromagnetic 12 | . . . . . . . . 12 Robot Hit Streak 15 | . 13 15 9 . 4 7 . 10 Robot Miss Streak 5 | . 5 1 5 . 3 5 . 1 Penetration Max 1 | . . . . . 1 . . . Secondary Targets . | . . . . . . . . . Shots Hit Robots 77 | . 14 3 19 . 15 15 . 11 Core Hits 48 | . 11 2 5 . 11 12 . 7 Critical Kills . | . . . . . . . . . Critical Parts Destroyed . | . . . . . . . . . Critical Strikes . | . . . . . . . . . Melee Attacks . | . . . . . . . . . Impact . | . . . . . . . . . Slashing . | . . . . . . . . . Piercing . | . . . . . . . . . Sneak Attacks . | . . . . . . . . . Combat Hostiles . | . . . . . . . . . Follow-up Attacks . | . . . . . . . . . Damage Inflicted 1733 | . 195 38 263 4 304 678 . 251 Guns 1151 | . 195 38 263 . 290 118 . 247 Cannons 77 | . . . . . . 77 . . Explosions 465 | . . . . . . 465 . . Melee . | . . . . . . . . . Ramming 40 | . . . . 4 14 18 . 4 Kinetic 919 | . 195 38 263 . 290 118 . 15 Thermal 77 | . . . . . . 77 . . Explosive 465 | . . . . . . 465 . . Electromagnetic 232 | . . . . . . . . 232 Impact . | . . . . . . . . . Slashing . | . . . . . . . . . Piercing . | . . . . . . . . . Highest Corruption 8 | . . . . . 8 8 8 8 Average Corruption 7 | . . . . . 8 7 6 8 Corruption Purged . | . . . . . . . . . Corruption Blocked . | . . . . . . . . . Effects 22 | . . . . . 3 . 1 18 Message Errors 9 | . . . . . . . . 9 Matter Fused 5 | . . . . . 1 . . 4 Heat Flow Errors 2 | . . . . . 2 . . . Energy Discharges 1 | . . . . . . . . 1 Data Loss (minor) 2 | . . . . . . . . 2 Data Loss (major) 1 | . . . . . . . 1 . Misfires 1 | . . . . . . . . 1 Weapon Failures 1 | . . . . . . . . 1 Overload Shots . | . . . . . . . . . Overflow Damage 10 | . . . . . . 10 . . Projectiles . | . . . . . . . . . Explosions 10 | . . . . . . 10 . . Melee . | . . . . . . . . . Knockbacks . | . . . . . . . . . Impact . | . . . . . . . . . Kinetic . | . . . . . . . . . Secondary . | . . . . . . . . . Self-Inflicted Damage 16 | . . . . 2 6 8 . . Shots . | . . . . . . . . . Rammed 12 | . . . . 2 8 2 . . Targets Rammed 13 | . . . . 2 8 2 . 1 Kicked 1 | . . . . . . . . 1 Crushed . | . . . . . . . . . Highest Temperature 214 | . 2 . . 32 214 94 . 21 Average Temperature 26 | . 2 . . 9 37 24 . 6 Received Heat Transfer 630 | . 42 12 24 279 12 45 9 207 Siege Activations . | . . . . . . . . . Robots Corrupted . | . . . . . . . . . Combat Hostiles . | . . . . . . . . . Parts Fried 2 | . . . . . . . . 2 Impact Corruptions . | . . . . . . . . . Robots Melted . | . . . . . . . . . Combat Hostiles . | . . . . . . . . . Parts Melted . | . . . . . . . . . Heat Transferred 150 | . . . . . . 150 . . Parts Sabotaged 1 | . . . . . . 1 . . Parts Stolen . | . . . . . . . . . Parts Stripped . | . . . . . . . . . Power Chain Reactions . | . . . . . . . . . Alert | -11 -10 -9 -9 -8 -7 -6 -5 -5 ------- Run | Yrd Mat Mat Min Mat Fac Fac Fac Ext Peak Influence 258 | . 94 90 154 30 141 181 258 136 Initial 126 | . . . 34 . 9 68 83 126 Average 66 | . 48 34 101 4 29 101 99 91 Maximum Alert Level 1 | . . . . . . . 1 . Low Security (%) 99 | 100 100 100 100 100 100 100 94 100 Level 1 . | . . . . . . . 5 . Level 2 . | . . . . . . . . . Level 3 . | . . . . . . . . . Level 4 . | . . . . . . . . . Level 5 . | . . . . . . . . . High Security . | . . . . . . . . . Max Security . | . . . . . . . . . Squads Dispatched 10 | . . 1 . 1 1 3 2 2 Investigation 3 | . . 1 . . . 1 . 1 Extermination 1 | . . . . . 1 . . . Reinforcement 5 | . . . . 1 . 1 2 1 Assault 1 | . . . . . . 1 . . Garrison . | . . . . . . . . . Intercept . | . . . . . . . . . Searches Triggered . | . . . . . . . . . Construction Impeded 2 | . . . . . . 1 . 1 Haulers Reinforced . | . . . . . . . . . Active Scanning Responses . | . . . . . . . . . Cargo Convoy Interrupts 1 | . . . . . . 1 . . Stealth | -11 -10 -9 -9 -8 -7 -6 -5 -5 --------- Run | Yrd Mat Mat Min Mat Fac Fac Fac Ext Distress Signals 8 | . . 2 1 . . 3 2 . Communications Jammed . | . . . . . . . . . Distress Signals . | . . . . . . . . . Times Spotted 110 | . 5 5 17 10 17 27 22 7 Peak Tracking Total 18 | . 2 5 10 8 6 18 13 5 Tactical Retreats 13 | . . 1 3 1 4 2 2 . Traps | -11 -10 -9 -9 -8 -7 -6 -5 -5 ------- Run | Yrd Mat Mat Min Mat Fac Fac Fac Ext Traps Triggered 4 | . 1 1 . . . 2 . . Indirectly . | . . . . . . . . . Trap Hack Attempts . | . . . . . . . . . Triggered . | . . . . . . . . . Disarmed . | . . . . . . . . . Reprogrammed . | . . . . . . . . . Reused . | . . . . . . . . . Traps Extracted . | . . . . . . . . . Installed . | . . . . . . . . . Triggered . | . . . . . . . . . Machines | -11 -10 -9 -9 -8 -7 -6 -5 -5 ---------- Run | Yrd Mat Mat Min Mat Fac Fac Fac Ext Machines Disabled 2 | . . . . . . 2 . . Max in Single Turn 1 | . . . . . . 1 . . Garrison Access 2 | . . . . . 1 1 . . Machines Repaired . | . . . . . . . . . Machines Dismantled . | . . . . . . . . . Machines Sabotaged . | . . . . . . . . . Overloaded Fab Kills . | . . . . . . . . . Hacking | -11 -10 -9 -9 -8 -7 -6 -5 -5 --------- Run | Yrd Mat Mat Min Mat Fac Fac Fac Ext Machines Accessed 20 | . 4 6 . . 6 2 1 1 Terminals 12 | . 2 5 . . 3 . 1 1 Fabricators 3 | . . . . . 2 1 . . Repair Stations 1 | . 1 . . . . . . . Recycling Units 2 | . 1 1 . . . . . . Scanalyzers 1 | . . . . . . 1 . . Garrison Access 1 | . . . . . 1 . . . Total Hacks 47 | . 11 12 . . 12 9 1 2 Successful 30 | . 9 6 . . 8 6 1 . Failed 17 | . 2 6 . . 4 3 . 2 Catastrophic 3 | . . 1 . . 1 . . 1 Database Lockouts . | . . . . . . . . . Manual . | . . . . . . . . . Terminals 28 | . 5 11 . . 9 . 1 2 Fabricators 4 | . . . . . 2 2 . . Repair Stations 2 | . 2 . . . . . . . Recycling Units 5 | . 4 1 . . . . . . Scanalyzers 7 | . . . . . . 7 . . Garrison Access 1 | . . . . . 1 . . . Terminal Hacks 18 | . 5 5 . . 7 . 1 . Record 2 | . . 1 . . 1 . . . Robot Analysis 2 | . 1 . . . 1 . . . Prototype ID Bank 1 | . . 1 . . . . . . Open Door 1 | . . . . . . . 1 . Branch Access Points 1 | . . . . . 1 . . . Emergency Access Points 1 | . . . . . 1 . . . Alert Level 1 | . 1 . . . . . . . Locate Traps 1 | . . . . . 1 . . . Recall Investigation 1 | . . 1 . . . . . . Hauler Manifests 2 | . 1 1 . . . . . . Registered Components 1 | . . . . . 1 . . . Zone Layout 4 | . 2 1 . . 1 . . . Fabricator Hacks 1 | . . . . . . 1 . . Network Status 1 | . . . . . . 1 . . Repair Station Hacks 2 | . 2 . . . . . . . Scan Component 1 | . 1 . . . . . . . Repair 1 | . 1 . . . . . . . Recycling Unit Hacks 3 | . 2 1 . . . . . . Report Inventory 2 | . 1 1 . . . . . . Retrieve Components 1 | . 1 . . . . . . . Scanalyzer 5 | . . . . . . 5 . . Insert Component 2 | . . . . . . 2 . . Analyze 3 | . . . . . . 3 . . Garrison Access Hacks 1 | . . . . . 1 . . . Seal Access 1 | . . . . . 1 . . . Unauthorized Hacks . | . . . . . . . . . Terminals . | . . . . . . . . . Fabricators . | . . . . . . . . . Repair Stations . | . . . . . . . . . Recycling Units . | . . . . . . . . . Scanalyzers . | . . . . . . . . . Garrison Access . | . . . . . . . . . Data Cores Recovered . | . . . . . . . . . Used . | . . . . . . . . . Hacking Detections 16 | . 2 6 . . 5 2 . 1 Full Trace Events 2 | . . . . . . 1 . 1 Feedback Events . | . . . . . . . . . Feedback Blocked . | . . . . . . . . . Robot Schematics Acquired . | . . . . . . . . . Robots Built . | . . . . . . . . . Authchips . | . . . . . . . . . Time . | . . . . . . . . . Total Robot Build Rating . | . . . . . . . . . Part Schematics Acquired 2 | . . . . . . 2 . . Parts Built . | . . . . . . . . . Authchips . | . . . . . . . . . Time . | . . . . . . . . . Total Part Build Rating . | . . . . . . . . . Parts Repaired 1 | . 1 . . . . . . . Time 26 | . 26 . . . . . . . Parts Recycled . | . . . . . . . . . Recycled Matter . | . . . . . . . . . Retrieved Matter . | . . . . . . . . . Retrieved Components 9 | . 9 . . . . . . . Parts Scanalyzed 2 | . . . . . . 2 . . Part Schematics Acquired 2 | . . . . . . 2 . . Parts Damaged . | . . . . . . . . . Bothacking | -11 -10 -9 -9 -8 -7 -6 -5 -5 ------------ Run | Yrd Mat Mat Min Mat Fac Fac Fac Ext Used RIF Installer . | . . . . . . . . . Robots Hacked . | . . . . . . . . . Non-combat . | . . . . . . . . . Combat . | . . . . . . . . . Robot Hacks Applied . | . . . . . . . . . Relay Couplers Released 2 | . . . . . . 2 . . Machine Destruction 2 | . . . . . . 2 . . Fabnet Peak Effective % . | . . . . . . . . . Robots Rewired 3 | . . . . . . . . 3 Allies Hacked . | . . . . . . . . . Hacks Repelled . | . . . . . . . . . Allies | -11 -10 -9 -9 -8 -7 -6 -5 -5 -------- Run | Yrd Mat Mat Min Mat Fac Fac Fac Ext Total Allies 3 | . . . . . . . . 3 Largest Group 3 | . . . . . . . . 3 Highest-Rated Group 93 | . . . . . . . . 93 Highest-Rated Ally 31 | . . . . . . . . 31 Total Orders . | . . . . . . . . . Ally Attacks 11 | . . . . . . . . 11 Total Damage 147 | . . . . . . . . 147 Kills 1 | . . . . . . . . 1 Allies Corrupted . | . . . . . . . . . Allies Melted . | . . . . . . . . . Intel | -11 -10 -9 -9 -8 -7 -6 -5 -5 ------- Run | Yrd Mat Mat Min Mat Fac Fac Fac Ext Robot Analysis Total 2 | . 1 . . . 1 . . . Derelict Logs Recovered 1 | . . . 1 . . . . . Drone Launches . | . . . . . . . . . Drone Recoveries . | . . . . . . . . . Exploration | -11 -10 -9 -9 -8 -7 -6 -5 -5 ------------- Run | Yrd Mat Mat Min Mat Fac Fac Fac Ext Turns Passed 3454 | 68 532 126 411 250 663 509 303 592 Spaces Moved 3555 | 47 363 182 369 207 875 606 553 353 Core 373 | 6 . . . 118 21 20 95 113 Treads . | . . . . . . . . . Legs 653 | 41 363 . . . 9 . . 240 Wheels . | . . . . . . . . . Hover 2424 | . . 182 369 89 778 548 458 . Flight 105 | . . . . . 67 38 . . Fastest Speed 29 | 50 120 52 52 50 32 29 48 120 Average Speed 79 | 111 120 52 63 115 63 66 52 145 Slowest Speed 200 | 120 120 52 120 200 200 180 60 200 Overloaded Moves . | . . . . . . . . . Propulsion Burnouts . | . . . . . . . . . Robots Hopped . | . . . . . . . . . Cave-ins Triggered 1 | . . . . . 1 . . . Exploration Rate (%) 27 | 3 37 16 81 23 15 18 18 32 Regions Visited 8 Branch Regions 2 Pre-discovered Areas . | . . . . . . . . . Known Exits Taken 7 | . 1 1 1 1 1 1 1 . Unknown Exits Taken 1 | 1 . . . . . . . . Scrap Searched 1 | . . . 1 . . . . . Spaces Dug . | . . . . . . . . . Terrain Destroyed 58 | . . . . . . 58 . . Melee . | . . . . . . . . . Projectile . | . . . . . . . . . AOE 58 | . . . . . . 58 . . Terrain Rammed . | . . . . . . . . . Walls Destroyed . | . . . . . . . . . Machines Disabled . | . . . . . . . . . Actions | -11 -10 -9 -9 -8 -7 -6 -5 -5 --------- Run | Yrd Mat Mat Min Mat Fac Fac Fac Ext Total 4061 | 63 437 209 509 217 952 688 567 419 Wait 258 | . 43 17 122 7 7 36 4 22 Move 3547 | 46 362 181 368 206 874 605 552 353 Hop . | . . . . . . . . . Pick Up 59 | 12 9 3 . . 13 10 6 6 Fast Attach 10 | . 1 . . . 4 4 1 . Attach 48 | 5 1 4 . 2 14 8 4 10 Detach 3 | . . . . . 2 . . 1 Swap 1 | . 1 . . . . . . . Drop 18 | . 7 2 . . 1 8 . . Fire 91 | . 13 2 19 . 29 15 . 13 Melee . | . . . . . . . . . Ram 12 | . . . . 2 8 2 . . Kick 1 | . . . . . . . . 1 Crush . | . . . . . . . . . Escape Stasis . | . . . . . . . . . Rewire 13 | . . . . . . . . 13 Trap . | . . . . . . . . . Miscellaneous . | . . . . . . . . . Route ------- -11/Scrapyard -10/Materials -9/Materials -9/Mines (discovered 2 exits: *Mat x2) -8/Materials -7/Factory (discovered 3 exits: *Fac / Low x2) -6/Factory -5/Factory -5/Extension History --------- Turn | Location | Event 3 | -11/Scrapyard | Discovered new exit (range 16) 69 | -11/Scrapyard | Entered Materials 311 | -10/Materials | Build established: Mutant 322 | -10/Materials | Discovered new exit (range 13) 518 | -10/Materials | Repaired Hover Unit 600 | -10/Materials | Identified exit to Materials 601 | -10/Materials | Entered another Materials area 601 | -9/Materials | Evolved 2 slots: Propulsion x1, Utility x1 705 | -9/Materials | Discovered new exit (range 11) 720 | -9/Materials | Identified exit to Mines 727 | -9/Materials | Entered Mines 799 | -9/Mines | Discovered new exit (range 10) 804 | -9/Mines | Identified exit to Materials 912 | -9/Mines | Build established: Scavenger-Mutant 936 | -9/Mines | Assembled infested the area 941 | -9/Mines | A Derelict revealed a hidden shortcut to a safe place 941 | -9/Mines | Assisted by a Guerilla fighting off Assembled 972 | -9/Mines | Learned Materials stockpile data 1018 | -9/Mines | Discovered exit to Materials (range 10) 1109 | -9/Mines | Destroyed YI-UF0 1138 | -9/Mines | Entered Materials 1138 | -8/Materials | Evolved 2 slots: Propulsion x1, Utility x1 1379 | -8/Materials | Discovered new exit (range 10) 1382 | -8/Materials | Core integrity fell below 50% 1387 | -8/Materials | Core integrity fell below 20% 1387 | -8/Materials | Identified exit to Factory 1388 | -8/Materials | Entered Factory 1388 | -7/Factory | Evolved 2 slots: Utility x2 1452 | -7/Factory | Identified exit to Lower Caves 1687 | -7/Factory | Discovered new exit (range 17) 1907 | -7/Factory | Crushed by falling debris 1943 | -7/Factory | Lost 8 parts (1p2n3u2w) 2007 | -7/Factory | Core integrity fell below 50% 2023 | -7/Factory | Core integrity fell below 20% 2051 | -7/Factory | Identified exit to Factory 2051 | -7/Factory | Entered another Factory area 2051 | -6/Factory | Evolved 2 slots: Utility x2 2065 | -6/Factory | Lost 6 parts (1p2n2u1w) 2367 | -6/Factory | Build established: Mutant 2517 | -6/Factory | Lost 4 parts (1p1n2u) 2537 | -6/Factory | Cargo convoy interrupted 2548 | -6/Factory | Core integrity fell below 50% 2556 | -6/Factory | Discovered new exit (range 9) 2560 | -6/Factory | Identified exit to Factory 2560 | -6/Factory | Entered another Factory area 2560 | -5/Factory | Evolved 2 slots: Utility x2 2582 | -5/Factory | Lost 4 parts (1n1u2w) 2817 | -5/Factory | Core integrity fell below 50% 2826 | -5/Factory | Core integrity fell below 20% 2850 | -5/Factory | Lost 5 parts (1p3n1u) 2861 | -5/Factory | Discovered new exit (range 6) 2863 | -5/Factory | Identified exit to Extension 2863 | -5/Factory | Entered Extension 3009 | -5/Extension | Spotted B-75 Beast 3455 | -5/Extension | Destroyed by Y-64 Sentinel with Wave Gun Last Messages --------------- E4-Y1G(g) rewired. L-41 Fighter suffers critical hit (Burn). Attempting to rewire FL-6PZ(g). FL-6PZ(g) rewired. R-10 Processor collects Hvy. Laser. T7-2IX(g) destroyed. Acquired Battle Rifle. R-10 Processor collects Imp. Heat Sink. Acquired Lgt. Angular Momentum Engine. E4-Y1G(g) Beamcaster severed. Penetrated by Slug. R-10 Processor collects Imp. Heat Sink. Penetrated by Slug. Lightning Gun destroyed. R-10 Processor collects Beamcaster. FL-6PZ(g) destroyed. < A1K|WCVF8S#HHJ>XUPAE4Q48 KLEJ Q Penetrated by Slug. Flexi-carbon Leg destroyed. Kicked Y-64 Sentinel. Map ----- +----------------------------------------------------+ | | | | | | | | | | | | | | | | | | | | | | | ?????????????????????????#???????????????????????? | | ?????????????#?#????????????#????????????????????? | | ?????????????????????????#?????????#??#??????????? | | ????????????##################??#????????????????? | | ????????##### #?#???#?????????????? | | ??####### ###?????????????????? | | ??? """"""" ########???#????????? | | ????#???# """"""" # #???#????????? | | ????????# # [ #????????????? | | ????????# # = #????????????? | | ????????# / [%* #????????????? | | ???????## ##### ######## ####%%=[ #????????????? | | ????????# #??#T #?#????# #?## %= #????????????? | | ?????#??# #??##"#?#??#?#Y#??##/#####???????#????? | | ????????# #????????????#@#???#!##???????????????? | | ######### #?#??????????# #####=########?????????? | | #????????????# g +?????????? | | ############????????????################?????????? | | ??????????????????????????????#??????????????????? | | #???????????????????????????#????????????????????? | | ????????????????????????#????????????????????????? | | ???????#???????#????????##????#??????????????????? | | ?#???????????????????????????????????????????????? | | ????????????????????????#????????????????????????? | | ????????????????????????#??????????#?????????????? | | ?????????????????????????????????????????????????? | | ?????????????????????????????????????????????????? | | ?#?????????????????#?????????????????????????????? | | ?????????????????????????????????????????????????? | | ?????????????????????????????????????????????????? | | #????????????????????????????????????????????????? | | ??????????????????????#??????????????????????????? | | ??????????????????????????????????????????????#### | | ?????????????????????????????????????????###### | | ?????????????????????????????????????????# | | ?????????????????????????????????????????# #### | | ##########################################+#####+# | | | | | +----------------------------------------------------+ Best States ------------- Heat Dissipation 66 Energy Generation 18 Energy Capacity 250 Matter Stores 300 Matter Capacity 300 Sight Range 18 Robot Scan Range 14 Terrain Scan Range 16 Terrain Scan Density 10 Armor Coverage 150 Resistance: EX 50 Phase Shifting 5 Evasion (%) 64 Offensive Hacking 10 Item Schematics ----------------- VTOL Module | -6/Factory | Scanalyzed Gravmag Array | -6/Factory | Scanalyzed Robot Schematics ------------------ None Fabricated ------------ Nothing Alien Tech Used ----------------- None Achievements -------------- None Challenges ------------ None Game ------ Seed PersonalMiniLauncher Manual? 0 Play Time 00:41:00 Cumulative 34.6 hours Start 2024.12.14 @ 12:21:10 End 2024.12.14 @ 13:03:29 Sessions 1 Manual Loads 0 Difficulty Rogue Special Mode None Game No. 40 Rogue 40 Adventurer 0 Explorer 0 Win Type - Total 0 Types 0/0/0/0/0/0/0/0/0 Lore% 17 Gallery% 31 Achievement% 29 Wizard Run 0 Options --------- Layout 1 ASCII 0 Keyboard 0 Movement Mouse Keybinds 0 Fullscreen 1 Font 24/Smallcaps Map View 50x35 Zoom Use 0% Tactical HUD 0 Map Filters NONE Filters NONE Steam 1 RUN: 240edf84-abf3-4a60-9005-a42fc2d2a157